[Event "ChessKid Cup Div-II 2023"]
[Site "Online"]
[Date "2023.05.22"]
[Round "1.1"]
[White "Sadhwani, Raunak"]
[Black "Gharibyan, Mamikon"]
[Result "1-0"]
[ECO "E15"]
[WhiteElo "2627"]
[BlackElo "2500"]
[Annotator "TA"]
[PlyCount "115"]
[EventDate "2023.05.21"]
[EventType "k.o."]
[EventCountry "NET"]
[SourceTitle "playchess.com"]
[Source "ChessBase"]
[SourceQuality "1"]
[TimeControl "900+3"]

{[%evp 20,115,8,4,21,19,60,50,67,39,82,81,131,125,119,133,129,111,172,141,137,93,130,139,129,133,166,165,224,224,224,230,296,305,295,268,252,264,262,146,187,147,154,143,144,91,93,92,107,99,98,98,98,119,101,106,111,74,77,39,189,189,189,23,237,237,237,237,237,237,237,237,241,237,237,237,244,244,244,243,244,196,196,0,0,0,0,0,0,0,0,0,12845,12846,12846,12847,12847,12846]} 1. Nf3 {[%emt 0:00:23]} d5 {[%emt 0:00:08]} 2. d4 {[%emt 0:00:05]} Nf6 {[%emt 0:00:07]} 3. c4 {[%emt 0:00:04]} e6 {[%emt 0:00:04]} 4. g3 {[%emt 0:00:03]} Bb4+ {[%emt 0:00:15]} 5. Bd2 {[%emt 0:00:01]} Be7 {[%emt 0:00:29]} 6. Bg2 {[%emt 0:00:01]} Nbd7 {[%emt 0:00:08]} 7. O-O {[%emt 0:00:01]} O-O {[%emt 0:00:05]} 8. Qc2 {[%emt 0:00:01]} c6 {[%emt 0:00:07]} 9. Rd1 {[%emt 0:00:01]} b6 {[%emt 0:00:07]} 10. b3 {[%emt 0:00:04]} Ba6 {[%emt 0:01:04]} 11. a4 $1 {[%emt 0:00:02] The main line 11.a4 scores better than 11.Bf4.} c5 {[%emt 0:00:42] E15: Queen's Indian: 4 g3 sidelines, 4 g3 Ba6 and 4 g3 Bb7 early deviations.} 12. a5 {[%emt 0:00:37]} cxd4 {[%emt 0:00:37]} 13. Nxd4 {[%emt 0:00:04]} Rc8 {[%emt 0:00:42] [#] White is slightly better.} 14. Nc3 $146 {[%emt 0:00:11]} (14. axb6 $5 Qxb6 15. Be3 $11) ({Predecessor:} 14. axb6 Qxb6 15. Ba5 Qb8 16. Nd2 Bb7 17. Qb2 Nb6 18. Ra2 Rfd8 19. Rda1 Bc5 20. e3 {1-0 Ilincic,Z (2412)-Martinovici,I (2405) Budapest FS08 GM 2019 (4)}) 14... bxa5 {[%emt 0:01:22]} 15. Ncb5 {[%emt 0:00:47]} Qb6 {[%emt 0:01:11]} (15... Bc5 $142) 16. Bxa5 $16 {[%emt 0:00:11]} (16. Rxa5 $6 dxc4 17. bxc4 Bxb5 18. Nxb5 a6 $11) 16... Qb8 {[%emt 0:00:59] [#]} 17. Bc7 $1 {[%emt 0:00:16][%mdl 576] Discovered Attack} Qb7 {[%emt 0:00:31]} 18. Bd6 {[%emt 0:00:02] White has more active pieces.} Nc5 {[%emt 0:00:24]} (18... Nb8 $16 {is a better defense.}) 19. b4 {[%emt 0:01:18]} Bxb5 {[%emt 0:00:52]} 20. Nxb5 {[%emt 0:00:08]} (20. bxc5 Bxd6 21. Nxb5 Bxc5 $15) 20... a6 {[%emt 0:02:25]} 21. Bxe7 {[%emt 0:00:28]} Qxe7 {[%emt 0:00:04]} 22. Nd4 $36 {[%emt 0:00:06][%mdl 2048] White is really pushing.} Nce4 {[%emt 0:01:14]} 23. c5 {[%emt 0:00:03]} e5 {[%emt 0:00:35]} (23... Qb7 $142) 24. Nf5 $18 {[%emt 0:00:15]} Qe6 {[%emt 0:00:13]} 25. Ne3 {[%emt 0:00:05]} Rfd8 {[%emt 0:00:55] [#]} 26. Nxd5 $1 {[%emt 0:00:16][%mdl 576] Deflection} Nxd5 {[%emt 0:00:12]} 27. Qxe4 {[%emt 0:00:38]} (27. Bxe4 $6 Nxb4 28. Bxh7+ Kf8 $18) 27... Nc3 {[%emt 0:00:07]} 28. Rxd8+ {[%emt 0:00:06]} Rxd8 {[%emt 0:00:00]} 29. Qc2 {[%emt 0:00:37]} ({White should try} 29. Qe3 $18 Nb5 30. Bb7) 29... Qc4 $16 {[%emt 0:00:08]} 30. Kh1 {[%emt 0:00:01]} Qxb4 {[%emt 0:00:12]} 31. c6 {[%emt 0:00:01] aiming for c7.} ({Much worse is} 31. Rxa6 $6 g6 32. Ra1 (32. Rd6 Rc8 $11) 32... Qxc5 $11) 31... g6 {[%emt 0:00:11]} 32. Rc1 {[%emt 0:00:06]} (32. Rxa6 $2 {is the wrong capture.} Rd1+ $19) ({White should play} 32. h4) 32... Nb5 {[%emt 0:00:02]} 33. h4 {[%emt 0:00:59]} ({Weaker is} 33. c7 Rc8 34. Qd3 Rxc7 $17) 33... Rd2 {[%emt 0:00:07]} 34. Qc5 {[%emt 0:00:20]} Qxc5 {[%emt 0:00:12]} 35. Rxc5 {[%emt 0:00:00] Strongly threatening c7.} Rxe2 {[%emt 0:00:02]} 36. c7 {[%emt 0:00:44]} Nxc7 {[%emt 0:00:02]} 37. Rxc7 {[%emt 0:00:00] Hoping for Kg1.} Rxf2 {[%emt 0:00:00][%mdl 4096] Endgame KRB-KR} 38. Re7 {[%emt 0:00:00]} h5 {[%emt 0:00:08]} 39. Rxe5 {[%emt 0:00:02] Black must now prevent Ra5.} Kg7 {[%emt 0:00:01]} (39... f5 $1 $14) 40. Re7 $18 {[%emt 0:00:02]} a5 {[%emt 0:00:03]} 41. Re5 $2 {[%emt 0:00:05]} (41. Kh2 $18) 41... a4 $2 {[%emt 0:00:04]} (41... f5 $1 $11) 42. Ra5 {[%emt 0:00:00]} Kf8 {[%emt 0:00:02]} 43. Rxa4 {[%emt 0:00:02]} Kg7 {[%emt 0:00:04]} 44. Kg1 {[%emt 0:00:00]} Rf5 {[%emt 0:00:01]} 45. Be4 {[%emt 0:00:01]} Rf6 {[%emt 0:00:03]} 46. Kg2 {[%emt 0:00:01]} Re6 {[%emt 0:00:03]} 47. Kf3 {[%emt 0:00:01]} Rf6+ {[%emt 0:00:01]} 48. Ke3 {[%emt 0:00:01]} Rf1 {[%emt 0:00:01]} 49. Ra7 {[%emt 0:00:01]} Re1+ {[%emt 0:00:07]} 50. Kd4 {[%emt 0:00:11]} Rg1 {[%emt 0:00:05] [#]} 51. Bd5 $2 {[%emt 0:00:22]} (51. Ra3 $1 $18) 51... Rxg3 $11 {[%emt 0:00:03]} 52. Rxf7+ {[%emt 0:00:02]} Kh6 {[%emt 0:00:02]} 53. Ke5 {[%emt 0:00:58]} Rg4 {[%emt 0:00:05]} 54. Rf4 {[%emt 0:00:01]} Rg1 {[%emt 0:00:08]} 55. Ra4 {[%emt 0:00:56]} g5 $2 {[%emt 0:00:08][%mdl 8192]} (55... Rg4 $11 56. Ra8 Rxh4) 56. Ra6+ $18 {[%emt 0:00:03] White is clearly winning.} Kg7 {[%emt 0:00:01] [#]} 57. Ra7+ $1 {[%emt 0:00:00]} Kf8 {[%emt 0:00:04]} 58. Kd6 {[%emt 0:00:15] Weighted Error Value: White=0.21 (precise) /Black=0.26 (precise)} 1-0

[Event "ChessKid Cup Div-II 2023"]
[Site "Online"]
[Date "2023.05.22"]
[Round "1.1"]
[White "Meier, Georg"]
[Black "Alekseenko, Kirill"]
[Result "0-1"]
[ECO "A17"]
[WhiteElo "2614"]
[BlackElo "2686"]
[Annotator "TA"]
[PlyCount "108"]
[EventDate "2023.05.21"]
[EventType "k.o."]
[EventCountry "NET"]
[SourceTitle "playchess.com"]
[Source "ChessBase"]
[SourceQuality "1"]
[TimeControl "900+3"]

{[%evp 9,108,13,23,10,18,0,6,14,0,0,0,0,7,0,0,-20,0,0,5,0,-2,-65,0,-35,7,0,0,-81,-78,-78,-82,-80,-79,-71,-88,-88,-81,-89,-80,-89,-81,-95,-107,-107,-107,-105,-90,-105,-103,-105,-64,-68,-72,-54,-64,-95,-88,-100,-114,-115,-117,-160,-153,-168,-163,-157,-161,-159,-162,-217,-212,-217,-222,-222,-219,-216,-200,-198,-186,-182,-164,-203,-200,-245,-245,-245,-239,-232,-228,-227,-180,-172,-165,-216,-30,-242,-186,-574,-548,-687,-634]} 1. Nf3 {[%emt 0:00:05]} d5 {[%emt 0:00:05]} 2. e3 {[%emt 0:00:01]} Nf6 {[%emt 0:00:27]} 3. c4 {[%emt 0:00:01]} e6 {[%emt 0:00:05]} 4. Nc3 {[%emt 0:00:04]} a6 {[%emt 0:00:41]} 5. b3 {[%emt 0:00:23]} Bd6 {[%emt 0:00:11]} 6. Bb2 {[%emt 0:00:06] A17: English Opening: 1...Nf6 with ...Bb4.} O-O {[%emt 0:00:16]} 7. Rc1 {[%emt 0:00:30] 7.g3 is setting a new trend.} Nbd7 {[%emt 0:00:28]} 8. Be2 {[%emt 0:00:56] [#] The position is equal.} Re8 $146 {[%emt 0:00:09]} ({Predecessor:} 8... b6 9. cxd5 exd5 10. Nd4 Nc5 11. O-O Qd7 12. d3 Re8 13. Bf3 Bb7 14. Nce2 Be5 {½-½ Rodriguez Vila,A (2431)-Aranha Filho,A (2150) Rio de Janeiro op 2nd 2023 (6)}) 9. O-O {[%emt 0:00:26]} b6 {[%emt 0:00:05]} 10. cxd5 {[%emt 0:00:27]} exd5 {[%emt 0:00:03]} 11. Re1 {[%emt 0:00:24]} Bb7 {[%emt 0:00:06]} 12. h3 {[%emt 0:00:02]} Nf8 {[%emt 0:00:47]} 13. Bf1 {[%emt 0:00:04]} Ng6 {[%emt 0:00:10]} 14. Ne2 {[%emt 0:00:04]} c5 {[%emt 0:00:25][%cal Od5d4]} 15. d4 {[%emt 0:00:05]} (15. g3 $11) 15... Rc8 {[%emt 0:00:36]} (15... c4 $1 $15) 16. Qd3 {[%emt 0:02:18]} Qe7 {[%emt 0:02:00]} 17. dxc5 {[%emt 0:00:28]} bxc5 {[%emt 0:00:03]} 18. g3 {[%emt 0:00:07] [#]} (18. Nf4 $11) 18... d4 $1 $17 {[%emt 0:00:45][%mdl 64] Discovered Attack} 19. exd4 {[%emt 0:01:49][%cal Od4d5]} Be4 {[%emt 0:00:02]} 20. Nc3 {[%emt 0:00:06]} Bxd3 {[%emt 0:00:25]} 21. Rxe7 {[%emt 0:00:00]} Bxe7 {[%emt 0:01:08]} 22. Bxd3 {[%emt 0:00:05]} cxd4 $1 {[%emt 0:00:01]} 23. Ne2 {[%emt 0:01:26]} Rxc1+ {[%emt 0:00:32]} 24. Nxc1 {[%emt 0:00:00]} a5 {[%emt 0:00:18]} 25. Bxd4 {[%emt 0:00:03]} Nd5 {[%emt 0:01:03]} 26. Bc4 {[%emt 0:02:30] [#]} Bf6 $1 {[%emt 0:00:13]} 27. Bc5 {[%emt 0:00:31]} (27. Bxd5 Bxd4) 27... Nc3 {[%emt 0:00:18]} 28. a4 {[%emt 0:00:25]} Ne4 {[%emt 0:02:25]} 29. Bb6 {[%emt 0:00:02]} Bd8 {[%emt 0:00:44]} 30. Bb5 {[%emt 0:00:14]} Bxb6 {[%emt 0:00:27]} 31. Bxe8 {[%emt 0:00:01]} Bxf2+ {[%emt 0:00:02]} 32. Kg2 {[%emt 0:00:00]} Bxg3 {[%emt 0:00:04]} 33. Bc6 {[%emt 0:00:04]} Nf4+ {[%emt 0:00:03]} 34. Kf1 {[%emt 0:00:10] [#]} Nc5 {[%emt 0:00:12]} 35. Ng1 {[%emt 0:00:02]} Kf8 {[%emt 0:00:09] Black is more active.} 36. Nce2 {[%emt 0:00:06]} Nxe2 {[%emt 0:00:04]} 37. Nxe2 $19 {[%emt 0:00:00][%mdl 4096] Endgame KBN-KBN} Be5 {[%emt 0:00:01]} 38. Bd5 {[%emt 0:00:01]} f5 {[%emt 0:00:08]} 39. Kg2 {[%emt 0:00:03]} (39. Nc1 {was necessary.}) 39... Ke7 {[%emt 0:00:03]} 40. h4 {[%emt 0:00:07]} h6 {[%emt 0:00:05]} 41. h5 {[%emt 0:00:19] [#]} Kf6 $1 {[%emt 0:00:03]} 42. Ng1 {[%emt 0:00:00]} Kg5 {[%emt 0:00:06]} 43. Nf3+ {[%emt 0:00:02]} Kf4 $1 {[%emt 0:00:00]} ({Much less strong is} 43... Kxh5 44. Nxe5 Kg5 45. Nc6 $18) 44. Bf7 {[%emt 0:00:02]} Bf6 {[%emt 0:00:03]} 45. Nd2 {[%emt 0:00:08]} Bc3 {[%emt 0:00:08]} 46. Nc4 {[%emt 0:00:18]} Nd3 {[%emt 0:00:01]} ({Weaker is} 46... Nxb3 47. Nb6 Bd4 48. Bxb3 Bxb6 49. Bc2) 47. Nb6 {[%emt 0:00:37] Hoping for Nd5+.} Kg4 {[%emt 0:00:18]} 48. Nd5 {[%emt 0:00:05]} Bd2 {[%emt 0:00:01]} 49. Kf1 {[%emt 0:00:06]} Nc1 {[%emt 0:00:08]} 50. Ne7 {[%emt 0:00:11]} f4 {[%emt 0:00:09][%cal Bf5f4,Bf4f3][%mdl 32]} 51. Nc6 {[%emt 0:00:32]} (51. Nd5 $142) 51... Bc3 $2 {[%emt 0:00:01]} ({Better is} 51... f3 $19 {...Bc3 is the strong threat.} 52. Be6+ Kg5) 52. Ne7 $2 {[%emt 0:00:04]} (52. b4 $1 $11 {and White has nothing to worry.} Nd3 53. b5) 52... f3 {[%emt 0:00:02] White must now prevent ...Ne2.} 53. Nd5 $2 {[%emt 0:00:04]} (53. Be6+ Kxh5 54. Kf2) 53... Bd4 {[%emt 0:00:10][%cal Oc1e2] Strongly threatening ...Ne2!} 54. Nc7 {[%emt 0:00:08]} Ne2 {[%emt 0:00:05] Weighted Error Value: White=0.31/Black=0.14 (very precise)} 0-1

[Event "ChessKid Cup Div-II 2023"]
[Site "Online"]
[Date "2023.05.22"]
[Round "1.1"]
[White "Le, Tuan Minh"]
[Black "Oparin, Grigoriy"]
[Result "1/2-1/2"]
[ECO "D41"]
[WhiteElo "2542"]
[BlackElo "2667"]
[Annotator "TA"]
[PlyCount "81"]
[EventDate "2023.05.21"]
[EventType "k.o."]
[EventCountry "NET"]
[SourceTitle "playchess.com"]
[Source "ChessBase"]
[SourceQuality "1"]
[TimeControl "900+3"]

{[%evp 11,81,25,22,29,32,0,0,-3,22,18,30,35,25,16,21,22,25,24,14,18,39,41,27,30,38,60,73,81,81,72,95,89,91,86,98,94,96,89,91,84,97,88,94,84,99,106,106,70,70,78,79,75,79,66,65,22,31,24,18,18,22,19,47,42,49,41,46,0,22,0,50,0]} 1. d4 {[%emt 0:00:20]} Nf6 {[%emt 0:00:06]} 2. Nf3 {[%emt 0:00:03]} d5 {[%emt 0:00:02]} 3. c4 {[%emt 0:00:01]} e6 {[%emt 0:00:02]} 4. Nc3 {[%emt 0:00:01]} c5 {[%emt 0:00:01]} 5. cxd5 {[%emt 0:00:12]} cxd4 {[%emt 0:00:01]} 6. Qxd4 {[%emt 0:00:09]} exd5 {[%emt 0:00:01]} 7. e4 {[%emt 0:00:31][%cal Re4d5] D41: Queen's Gambit Declined: Semi-Tarrasch with 5 cxd5.} dxe4 {[%emt 0:00:03]} 8. Bb5+ {[%emt 0:01:39]} (8. Qxd8+ {simplifies} Kxd8 9. Ng5 Be6 10. Nxe6+ fxe6 11. Bg5) 8... Bd7 {[%emt 0:00:09]} ({Resist} 8... Nc6 9. Qxd8+ Kxd8 10. Ng5 $14) 9. Ne5 {[%emt 0:05:24] [#] Threatens to win with Qc4. The position is equal.} Nc6 {[%emt 0:00:44]} 10. Bxc6 {[%emt 0:00:23]} Bxc6 {[%emt 0:00:00]} 11. Nxc6 {[%emt 0:00:23]} bxc6 {[%emt 0:00:03]} 12. Qc4 {[%emt 0:00:05] [#]} Qd6 $146 {[%emt 0:01:17]} ({Predecessor:} 12... Rb8 13. Qxc6+ Qd7 14. Qxd7+ Kxd7 15. Bg5 Ke6 16. O-O-O Be7 17. Rhe1 Kf5 18. Bxf6 Bxf6 {1-0 Olsen,H (2278)-Vang,F Atlantic Airways Cup-A 2003 (9)}) 13. O-O {[%emt 0:00:35]} Qe6 {[%emt 0:00:14]} ({Much less strong is} 13... Qc5 14. Qa4 Be7 15. Be3 $16 (15. Nxe4 Nxe4 16. Qxe4 f5 $16)) 14. Qxe6+ {[%emt 0:00:19]} fxe6 {[%emt 0:00:00]} 15. Bg5 {[%emt 0:00:12]} Rb8 {[%emt 0:00:01]} 16. b3 {[%emt 0:00:12]} Bb4 {[%emt 0:01:14]} 17. Rac1 {[%emt 0:00:37]} Bxc3 {[%emt 0:00:17]} 18. Rxc3 {[%emt 0:00:00]} Kd7 {[%emt 0:00:00]} 19. Rd1+ {[%emt 0:00:03]} Nd5 {[%emt 0:00:03]} 20. Rc4 {[%emt 0:00:01] Dodges Rb4} h6 {[%emt 0:00:44]} 21. Bf4 {[%emt 0:00:18]} Rb5 {[%emt 0:00:10]} 22. Rxe4 {[%emt 0:00:04]} Rf8 {[%emt 0:00:01]} 23. Be5 {[%emt 0:00:07]} Rf7 {[%emt 0:00:10]} 24. h4 {[%emt 0:00:08]} h5 {[%emt 0:00:03] Prevents Rg4} 25. g3 {[%emt 0:00:04]} Rc5 {[%emt 0:00:05]} 26. Rd2 {[%emt 0:00:05] Prevents Rc2. White has more active pieces.} g6 {[%emt 0:00:07]} 27. Kg2 {[%emt 0:00:02]} Rf5 {[%emt 0:00:06]} 28. Bd4 {[%emt 0:00:07]} Ra5 {[%emt 0:00:07]} 29. Rde2 {[%emt 0:00:05]} c5 {[%emt 0:00:18]} 30. Be5 {[%emt 0:00:06]} Ra6 {[%emt 0:00:05]} 31. Rc4 {[%emt 0:00:16]} Rc6 {[%emt 0:00:05]} 32. Bb2 {[%emt 0:00:07]} Nb6 {[%emt 0:00:07]} 33. Rce4 {[%emt 0:00:06]} c4 {[%emt 0:00:02]} 34. bxc4 {[%emt 0:00:12]} Nxc4 {[%emt 0:00:00]} 35. Bg7 {[%emt 0:00:05]} a5 {[%emt 0:00:08]} 36. Bh6 {[%emt 0:00:15]} a4 {[%emt 0:00:12]} 37. Bg5 {[%emt 0:00:13]} Rd5 {[%emt 0:00:10]} 38. Rf4 {[%emt 0:00:07]} Rf5 {[%emt 0:00:00] Inhibits Rf7+.} 39. Rfe4 {[%emt 0:00:09]} Rd5 {[%emt 0:00:01]} 40. Rf4 {[%emt 0:00:36]} Rf5 {[%emt 0:00:01] Wards off Rf7+} 41. Rfe4 {[%emt 0:00:01] Weighted Error Value: White=0.08 (flawless) /Black=0.06 (flawless)} (41. Rd4+ $14 Rd5 42. Ree4 Rxd4 43. Rxd4+ Kc7 44. Kf3) 1/2-1/2

[Event "ChessKid Cup Div-II 2023"]
[Site "Online"]
[Date "2023.05.22"]
[Round "1.1"]
[White "Bharath Subramaniyam H"]
[Black "Le, Quang Liem"]
[Result "0-1"]
[ECO "A27"]
[WhiteElo "2517"]
[BlackElo "2728"]
[Annotator "TA"]
[PlyCount "60"]
[EventDate "2023.05.21"]
[EventType "k.o."]
[EventCountry "NET"]
[SourceTitle "playchess.com"]
[Source "ChessBase"]
[SourceQuality "1"]
[TimeControl "900+3"]

{[%evp 9,60,7,25,-36,-33,-35,-31,-120,-86,-105,-118,-147,-125,-125,-125,-125,-122,-127,-124,-131,-120,-123,-97,-100,-114,-130,-130,-127,-135,-132,-122,-128,-116,-173,-175,-215,-212,-256,-264,-379,-384,-381,-382,-373,-347,-627,-619,-619,-610,-754,-752,-736,-733]} 1. c4 {[%emt 0:00:05]} e5 {[%emt 0:00:07]} 2. Nf3 {[%emt 0:00:07]} Nc6 {[%emt 0:00:02]} 3. d4 {[%emt 0:00:03]} e4 {[%emt 0:00:34]} 4. Ng5 {[%emt 0:00:18]} f5 {[%emt 0:00:04]} 5. Nc3 {[%emt 0:00:02]} Nf6 {[%emt 0:00:16]} 6. Bf4 {[%emt 0:00:54] A27: English Opening: Three Knights Variation.} (6. e3 $11) 6... h6 $15 {[%emt 0:00:25]} 7. Nh3 {[%emt 0:00:06] [#]} g5 $146 {[%emt 0:00:02]} ({Predecessor:} 7... Bb4 8. e3 d6 9. d5 Bxc3+ 10. bxc3 Ne7 11. Be2 O-O 12. O-O Nd7 13. c5 Nxc5 {0-1 Petricek,J (1876)-Janovec,V (1837) CZE-ch O183 email 2003}) 8. Be5 {[%emt 0:02:53]} (8. Bd2 $15) 8... Nxe5 $17 {[%emt 0:00:12]} 9. dxe5 {[%emt 0:00:03]} Ng4 {[%emt 0:00:01]} 10. e3 {[%emt 0:00:57]} Nxe5 {[%emt 0:00:45]} 11. Qh5+ {[%emt 0:00:21]} Nf7 {[%emt 0:00:03]} 12. Qg6 {[%emt 0:01:22] Dodges Bg7} Bb4 {[%emt 0:00:48]} 13. Qxf5 {[%emt 0:00:42]} Bxc3+ {[%emt 0:00:06]} 14. bxc3 {[%emt 0:00:02]} Qe7 {[%emt 0:00:01]} 15. Be2 {[%emt 0:01:27]} Qe5 {[%emt 0:01:04]} 16. Qxe5+ {[%emt 0:00:25]} Nxe5 {[%emt 0:00:00][%cal Bf7e5,Be5g4,Bg4e3][%mdl 32]} 17. O-O-O {[%emt 0:00:47]} b6 {[%emt 0:00:20]} 18. Ng1 {[%emt 0:00:38]} Bb7 {[%emt 0:01:00]} 19. f4 {[%emt 0:00:29] [#]} exf3 $1 {[%emt 0:00:06]} 20. Nxf3 {[%emt 0:00:08]} Ng4 {[%emt 0:00:04]} 21. Rde1 {[%emt 0:00:49]} (21. Rd4 $17 Nf2 22. Rf1) 21... O-O $19 {[%emt 0:02:19]} ({Don't do} 21... Nxe3 22. Bd1 $18) 22. h4 {[%emt 0:01:29]} Nxe3 {[%emt 0:00:03]} 23. Rhg1 {[%emt 0:00:58]} Rae8 {[%emt 0:00:59][%cal Oe3g2] Strongly threatening ...Nxg2!} 24. hxg5 {[%emt 0:00:10] [#]} (24. Bd1 {only move.}) 24... Nxg2 $1 {[%emt 0:00:03][%mdl 576] Remove Defender} 25. Rxg2 {[%emt 0:00:23]} Bxf3 {[%emt 0:00:02]} 26. Rf2 {[%emt 0:00:07]} hxg5 {[%emt 0:00:22]} 27. Rg1 $2 {[%emt 0:00:24]} (27. Kd2 Rxe2+ 28. Rfxe2 Bxe2 29. Rxe2) 27... Rxe2 {[%emt 0:00:04] Black is clearly winning.} (27... Bxe2 $2 {leads to mate.} 28. Rxg5+ Kh8 29. Rh2+) 28. Rxg5+ {[%emt 0:00:01]} Kh7 {[%emt 0:00:02]} 29. Rf1 {[%emt 0:00:01]} Rxa2 {[%emt 0:00:26] Threatens to win with ...Ra1+.} 30. Kb1 {[%emt 0:00:09] Wards off Ra1+} Be4+ {[%emt 0:00:02] White got outplayed after the opening.   Weighted Error Value: White=0.49/Black=0.03 (flawless)} 0-1